[Event "Late-Titled-Tuesday-Blitz-February-20-2024"]
[Site "Chess.com"]
[Date "2024.02.20"]
[Round "5"]
[White "ferdipy"]
[Black "miraitrunks"]
[Result "0-1"]
[WhiteElo "2362"]
[BlackElo "2210"]
[TimeControl "180+1"]
[EndTime "14:54:53 PST"]
[Termination "miraitrunks won by resignation"]

1. e4 {[%clk 0:03:00.8]} 1... c5 {[%clk 0:02:53.9]} 2. d4 {[%clk 0:03:00.9]}
2... cxd4 {[%clk 0:02:54]} 3. c3 {[%clk 0:03:01.2]} 3... d3 {[%clk 0:02:54.9]}
4. c4 {[%clk 0:03:01.5]} 4... g6 {[%clk 0:02:53.6]} 5. Bxd3 {[%clk 0:03:02.4]}
5... Bg7 {[%clk 0:02:54.3]} 6. Nf3 {[%clk 0:03:03.3]} 6... d6 {[%clk 0:02:52.5]}
7. O-O {[%clk 0:03:04.2]} 7... Nc6 {[%clk 0:02:53.1]} 8. h3 {[%clk 0:03:04.3]}
8... Nf6 {[%clk 0:02:53.7]} 9. Nc3 {[%clk 0:03:05]} 9... O-O {[%clk 0:02:54.3]}
10. Be3 {[%clk 0:03:05.9]} 10... a6 {[%clk 0:02:54]} 11. Qe2 {[%clk 0:03:06.8]}
11... e6 {[%clk 0:02:47.8]} 12. Rac1 {[%clk 0:03:07.7]} 12... Qc7 {[%clk
0:02:47.5]} 13. a3 {[%clk 0:03:07.2]} 13... Rd8 {[%clk 0:02:46.8]} 14. b4 {[%clk
0:03:07.6]} 14... b6 {[%clk 0:02:46.5]} 15. Rfd1 {[%clk 0:03:07.5]} 15... Bb7
{[%clk 0:02:46.7]} 16. Nd2 {[%clk 0:03:06.2]} 16... d5 {[%clk 0:02:43]} 17. cxd5
{[%clk 0:03:05.8]} 17... exd5 {[%clk 0:02:43.3]} 18. exd5 {[%clk 0:03:03.3]}
18... Nxd5 {[%clk 0:02:44.2]} 19. Nxd5 {[%clk 0:03:03.8]} 19... Rxd5 {[%clk
0:02:44.1]} 20. Be4 {[%clk 0:03:02.4]} 20... Re5 {[%clk 0:02:36.5]} 21. Nc4
{[%clk 0:03:02.4]} 21... Rxe4 {[%clk 0:02:33.2]} 22. Nxb6 {[%clk 0:03:02]} 22...
Qxb6 {[%clk 0:02:33]} 23. Bxb6 {[%clk 0:02:57.2]} 23... Rxe2 {[%clk 0:02:32.7]}
24. Rd7 {[%clk 0:02:58.1]} 24... Rb8 {[%clk 0:02:01.9]} 25. Bc7 {[%clk
0:02:50.3]} 25... Rc8 {[%clk 0:02:01.1]} 26. Bb6 {[%clk 0:02:50.5]} 26... h5
{[%clk 0:01:44.7]} 27. Rxb7 {[%clk 0:02:48.6]} 27... Be5 {[%clk 0:01:36.4]} 28.
a4 {[%clk 0:02:42.9]} 28... Re8 {[%clk 0:01:29.7]} 29. b5 {[%clk 0:02:38.8]}
29... axb5 {[%clk 0:01:22.5]} 30. axb5 {[%clk 0:02:39.7]} 30... Nd4 {[%clk
0:01:19.5]} 31. Ba7 {[%clk 0:02:28.4]} 31... Rb2 {[%clk 0:01:08.4]} 32. b6
{[%clk 0:02:18]} 32... Ne2+ {[%clk 0:01:07.5]} 33. Kf1 {[%clk 0:02:16.4]} 33...
Nxc1 {[%clk 0:00:48.4]} 34. Rd7 {[%clk 0:02:16.6]} 34... Nb3 {[%clk 0:00:43.9]}
35. g3 {[%clk 0:02:15.7]} 35... Nc5 {[%clk 0:00:35.2]} 36. Rd5 {[%clk
0:02:15.4]} 36... Bb8 {[%clk 0:00:33]} 37. Rxc5 {[%clk 0:02:11.5]} 37... Bxa7
{[%clk 0:00:32.9]} 38. bxa7 {[%clk 0:02:12.4]} 38... Ra8 {[%clk 0:00:32.9]} 39.
Rc7 {[%clk 0:02:12.7]} 39... Ra2 {[%clk 0:00:32.9]} 40. g4 {[%clk 0:02:12.7]}
40... R2xa7 {[%clk 0:00:33.5]} 41. Rc3 {[%clk 0:02:10.5]} 41... hxg4 {[%clk
0:00:33.4]} 42. hxg4 {[%clk 0:02:10.9]} 42... Ra4 {[%clk 0:00:34.1]} 43. g5
{[%clk 0:02:10.7]} 43... Rg4 {[%clk 0:00:33.4]} 44. Rc5 {[%clk 0:02:09.3]} 44...
Ra1+ {[%clk 0:00:31.5]} 45. Ke2 {[%clk 0:02:09.1]} 45... Rag1 {[%clk 0:00:31.5]}
46. f3 {[%clk 0:02:09]} 46... Rxg5 {[%clk 0:00:27.9]} 47. Rc8+ {[%clk
0:02:09.9]} 47... Kg7 {[%clk 0:00:26.5]} 48. Kf2 {[%clk 0:02:10.8]} 48... R1g2+
{[%clk 0:00:21.9]} 49. Ke3 {[%clk 0:02:11]} 49... R2g3 {[%clk 0:00:21.5]} 50.
Rc4 {[%clk 0:02:09.4]} 50... Rf5 {[%clk 0:00:21.2]} 51. Rh4 {[%clk 0:02:02.6]}
51... Rfxf3+ {[%clk 0:00:18.3]} 52. Kd4 {[%clk 0:02:02.6]} 52... f5 {[%clk
0:00:19.2]} 53. Rh1 {[%clk 0:02:00.6]} 53... Rf2 {[%clk 0:00:19.1]} 54. Re1
{[%clk 0:01:58.9]} 54... Rd2+ {[%clk 0:00:19]} 55. Ke5 {[%clk 0:01:58.5]} 55...
Rg4 {[%clk 0:00:18.5]} 56. Re3 {[%clk 0:01:51.6]} 56... Re4+ {[%clk 0:00:19.4]}
57. Rxe4 {[%clk 0:01:52]} 57... fxe4 {[%clk 0:00:20.3]} 58. Kxe4 {[%clk
0:01:52.8]} 58... Rf2 {[%clk 0:00:20.2]} 59. Ke3 {[%clk 0:01:52.2]} 59... Rf8
{[%clk 0:00:21.1]} 60. Ke4 {[%clk 0:01:52.4]} 60... g5 {[%clk 0:00:22]} 0-1

[Event "Late-Titled-Tuesday-Blitz-February-20-2024"]
[Site "Chess.com"]
[Date "2024.02.20"]
[Round "5"]
[White "ritanovikova"]
[Black "flubs"]
[Result "1-0"]
[WhiteElo "2222"]
[BlackElo "2444"]
[TimeControl "180+1"]
[EndTime "14:54:54 PST"]
[Termination "ritanovikova won by resignation"]

1. e4 {[%clk 0:02:57.9]} 1... c6 {[%clk 0:02:58.7]} 2. d4 {[%clk 0:02:57.6]}
2... d5 {[%clk 0:02:57.6]} 3. exd5 {[%clk 0:02:57.1]} 3... Qxd5 {[%clk 0:02:57]}
4. Bd3 {[%clk 0:02:58]} 4... Qxg2 {[%clk 0:02:56.1]} 5. Qf3 {[%clk 0:02:53.6]}
5... Qxf3 {[%clk 0:02:52]} 6. Nxf3 {[%clk 0:02:54.5]} 6... Nf6 {[%clk 0:02:52]}
7. c4 {[%clk 0:02:49]} 7... e6 {[%clk 0:02:47.4]} 8. Nc3 {[%clk 0:02:47.2]} 8...
Bb4 {[%clk 0:02:43.5]} 9. Bd2 {[%clk 0:02:46.5]} 9... Nbd7 {[%clk 0:02:41.7]}
10. a3 {[%clk 0:02:42.9]} 10... Be7 {[%clk 0:02:40.8]} 11. Rg1 {[%clk 0:02:42]}
11... g6 {[%clk 0:02:36.9]} 12. Bh6 {[%clk 0:02:38.2]} 12... a6 {[%clk
0:02:22.3]} 13. b4 {[%clk 0:02:34.8]} 13... b5 {[%clk 0:02:11.8]} 14. c5 {[%clk
0:02:24.5]} 14... Nd5 {[%clk 0:02:09.5]} 15. Nxd5 {[%clk 0:02:01.8]} 15... exd5
{[%clk 0:02:00.6]} 16. Kd2 {[%clk 0:02:01.2]} 16... Kd8 {[%clk 0:01:48.6]} 17.
Bf4 {[%clk 0:01:44.1]} 17... Bf6 {[%clk 0:01:45.2]} 18. Bg5 {[%clk 0:01:41.5]}
18... h6 {[%clk 0:01:38.8]} 19. Bxf6+ {[%clk 0:01:35.4]} 19... Nxf6 {[%clk
0:01:39.7]} 20. Ne5 {[%clk 0:01:36]} 20... Be6 {[%clk 0:01:29]} 21. Nxc6+ {[%clk
0:01:34.9]} 21... Kc7 {[%clk 0:01:26.3]} 22. Ne5 {[%clk 0:01:33.9]} 22... Rae8
{[%clk 0:01:21.5]} 23. a4 {[%clk 0:01:30.9]} 23... Nd7 {[%clk 0:01:04.4]} 24.
axb5 {[%clk 0:01:19.5]} 24... Nxe5 {[%clk 0:01:01.4]} 25. dxe5 {[%clk
0:01:20.4]} 25... axb5 {[%clk 0:00:55.4]} 26. Bxb5 {[%clk 0:01:19.8]} 26... Ra8
{[%clk 0:00:46.6]} 27. Bd3 {[%clk 0:01:13]} 27... Rhb8 {[%clk 0:00:43.5]} 28. b5
{[%clk 0:01:10.6]} 28... g5 {[%clk 0:00:29.6]} 29. Rgc1 {[%clk 0:01:00.1]} 29...
Kd7 {[%clk 0:00:17.9]} 30. Ke3 {[%clk 0:00:57.6]} 30... Ke7 {[%clk 0:00:16.5]}
31. Kd4 {[%clk 0:00:57.4]} 31... Rxa1 {[%clk 0:00:12.3]} 32. Rxa1 {[%clk
0:00:56.5]} 1-0

[Event "Late-Titled-Tuesday-Blitz-February-20-2024"]
[Site "Chess.com"]
[Date "2024.02.20"]
[Round "5"]
[White "Piotrek1979"]
[Black "lluiss"]
[Result "1-0"]
[WhiteElo "2417"]
[BlackElo "2192"]
[TimeControl "180+1"]
[EndTime "14:54:54 PST"]
[Termination "Piotrek1979 won on time"]

1. Nf3 {[%clk 0:03:00.9]} 1... d5 {[%clk 0:02:58.1]} 2. e3 {[%clk 0:03:00.6]}
2... c6 {[%clk 0:02:56.8]} 3. b3 {[%clk 0:03:00.2]} 3... e6 {[%clk 0:02:52.6]}
4. Bb2 {[%clk 0:03:01.1]} 4... f5 {[%clk 0:02:52]} 5. c4 {[%clk 0:03:00.2]} 5...
Nf6 {[%clk 0:02:51.7]} 6. Be2 {[%clk 0:03:00]} 6... Be7 {[%clk 0:02:51.8]} 7.
O-O {[%clk 0:02:59.7]} 7... O-O {[%clk 0:02:51.8]} 8. Qc2 {[%clk 0:02:59.5]}
8... Bd7 {[%clk 0:02:47.1]} 9. Ne5 {[%clk 0:02:56.7]} 9... Be8 {[%clk 0:02:47]}
10. d3 {[%clk 0:02:55.7]} 10... Nbd7 {[%clk 0:02:46.7]} 11. Nd2 {[%clk
0:02:53.8]} 11... Rc8 {[%clk 0:02:37.6]} 12. f4 {[%clk 0:02:51.4]} 12... Bh5
{[%clk 0:01:51.5]} 13. Bxh5 {[%clk 0:02:49.6]} 13... Nxh5 {[%clk 0:01:50.4]} 14.
Ndf3 {[%clk 0:02:50.2]} 14... Nhf6 {[%clk 0:01:43.9]} 15. a3 {[%clk 0:02:46.6]}
15... Nxe5 {[%clk 0:01:22.4]} 16. Nxe5 {[%clk 0:02:45.5]} 16... Nd7 {[%clk
0:01:16.7]} 17. b4 {[%clk 0:02:42.4]} 17... Bf6 {[%clk 0:01:16.6]} 18. Nf3
{[%clk 0:02:33.8]} 18... Bxb2 {[%clk 0:01:15.2]} 19. Qxb2 {[%clk 0:02:33.6]}
19... Qf6 {[%clk 0:01:15.8]} 20. Rab1 {[%clk 0:02:29]} 20... Qxb2 {[%clk
0:01:00.9]} 21. Rxb2 {[%clk 0:02:29.9]} 21... dxc4 {[%clk 0:01:00.9]} 22. dxc4
{[%clk 0:02:29.1]} 22... Nb6 {[%clk 0:01:01.6]} 23. Ne5 {[%clk 0:02:27.9]} 23...
Rfd8 {[%clk 0:00:58.8]} 24. Rc2 {[%clk 0:02:24]} 24... Rc7 {[%clk 0:00:55.5]}
25. Kf2 {[%clk 0:02:20.7]} 25... Kf8 {[%clk 0:00:53.8]} 26. Ke2 {[%clk
0:02:19.3]} 26... Ke7 {[%clk 0:00:53.7]} 27. h3 {[%clk 0:02:16]} 27... Nd7
{[%clk 0:00:50.9]} 28. Nf3 {[%clk 0:02:15]} 28... Nf6 {[%clk 0:00:50.4]} 29. g4
{[%clk 0:02:12]} 29... fxg4 {[%clk 0:00:45.1]} 30. hxg4 {[%clk 0:02:12.9]} 30...
Nxg4 {[%clk 0:00:44.6]} 31. Rh1 {[%clk 0:02:11.7]} 31... Nf6 {[%clk 0:00:43.4]}
32. Ne5 {[%clk 0:02:08.7]} 32... Kf8 {[%clk 0:00:40.1]} 33. Kf3 {[%clk
0:02:08.3]} 33... Kg8 {[%clk 0:00:39.3]} 34. Rch2 {[%clk 0:02:06]} 34... h6
{[%clk 0:00:33.5]} 35. Rg2 {[%clk 0:02:05.1]} 35... Kh7 {[%clk 0:00:33.5]} 36.
Rhg1 {[%clk 0:02:02.8]} 36... Rg8 {[%clk 0:00:27.7]} 37. Ng6 {[%clk 0:01:59.1]}
37... Rd7 {[%clk 0:00:24]} 38. Ne5 {[%clk 0:01:50.2]} 38... Rdd8 {[%clk
0:00:22.3]} 39. a4 {[%clk 0:01:49.1]} 39... Nd7 {[%clk 0:00:20.3]} 40. Nf7
{[%clk 0:01:48.1]} 40... Rdf8 {[%clk 0:00:19.5]} 41. Nd6 {[%clk 0:01:47.3]}
41... b6 {[%clk 0:00:16.4]} 42. Rd2 {[%clk 0:01:40.5]} 42... Ne5+ {[%clk
0:00:13.2]} 43. Ke4 {[%clk 0:01:39]} 43... Nf7 {[%clk 0:00:13.5]} 44. Nb7 {[%clk
0:01:28.9]} 44... Rb8 {[%clk 0:00:10.4]} 45. Rd7 {[%clk 0:01:29.5]} 45... Nd8
{[%clk 0:00:08.2]} 46. Nd6 {[%clk 0:01:28.2]} 46... c5 {[%clk 0:00:02.2]} 47. b5
{[%clk 0:01:27.4]} 1-0

[Event "Late-Titled-Tuesday-Blitz-February-20-2024"]
[Site "Chess.com"]
[Date "2024.02.20"]
[Round "5"]
[White "Eesha-Karavade"]
[Black "Boundless_Strike"]
[Result "1-0"]
[WhiteElo "2447"]
[BlackElo "2617"]
[TimeControl "180+1"]
[EndTime "14:54:57 PST"]
[Termination "Eesha-Karavade won by resignation"]

1. Nf3 {[%clk 0:03:00.9]} 1... d6 {[%clk 0:02:57.6]} 2. d4 {[%clk 0:03:00]} 2...
e5 {[%clk 0:02:58.5]} 3. dxe5 {[%clk 0:02:59.4]} 3... Bg4 {[%clk 0:02:59.2]} 4.
g3 {[%clk 0:02:56.5]} 4... Nc6 {[%clk 0:02:59.1]} 5. Bg2 {[%clk 0:02:55.8]} 5...
Qd7 {[%clk 0:02:59.7]} 6. h3 {[%clk 0:02:45.4]} 6... Bh5 {[%clk 0:02:59.7]} 7.
exd6 {[%clk 0:02:34.5]} 7... Bxd6 {[%clk 0:02:58.7]} 8. Nc3 {[%clk 0:02:33.4]}
8... O-O-O {[%clk 0:02:58.6]} 9. a3 {[%clk 0:02:24.7]} 9... Qe7 {[%clk
0:02:55.3]} 10. Bd2 {[%clk 0:02:23.6]} 10... Nf6 {[%clk 0:02:55.2]} 11. O-O
{[%clk 0:02:22.3]} 11... g5 {[%clk 0:02:51.8]} 12. Nxg5 {[%clk 0:02:07.4]} 12...
Rhg8 {[%clk 0:02:49.7]} 13. Qc1 {[%clk 0:02:04.7]} 13... h6 {[%clk 0:02:35.7]}
14. Nge4 {[%clk 0:02:04.6]} 14... Nxe4 {[%clk 0:02:35.8]} 15. Nxe4 {[%clk
0:02:04.7]} 15... Nd4 {[%clk 0:02:36.5]} 16. Re1 {[%clk 0:01:49.6]} 16... Nxe2+
{[%clk 0:02:33.3]} 17. Rxe2 {[%clk 0:01:49.9]} 17... Bxe2 {[%clk 0:02:34.2]} 18.
Bxh6 {[%clk 0:01:49.8]} 18... Be5 {[%clk 0:02:31.5]} 19. Qe3 {[%clk 0:01:46.1]}
19... Bb5 {[%clk 0:01:39.3]} 20. Qxa7 {[%clk 0:01:38.5]} 20... Bc6 {[%clk
0:01:39.6]} 21. Nc5 {[%clk 0:01:05.7]} 21... Qxc5 {[%clk 0:01:36.3]} 22. Qxc5
{[%clk 0:01:04.7]} 22... Bd4 {[%clk 0:01:36.9]} 23. Qf5+ {[%clk 0:01:03.5]}
23... Bd7 {[%clk 0:01:37.6]} 24. Qxf7 {[%clk 0:00:52.9]} 24... Rh8 {[%clk
0:01:37.9]} 25. Qd5 {[%clk 0:00:46.4]} 25... Bc6 {[%clk 0:01:37.9]} 26. Qf5+
{[%clk 0:00:46.2]} 26... Bd7 {[%clk 0:01:38.4]} 27. Qe4 {[%clk 0:00:41.8]} 27...
Bc6 {[%clk 0:01:38.6]} 28. Qg4+ {[%clk 0:00:41.9]} 28... Bd7 {[%clk 0:01:39.2]}
29. Qxd4 {[%clk 0:00:41.7]} 29... Rxh6 {[%clk 0:01:38.8]} 30. Qa7 {[%clk
0:00:35.6]} 30... Bc6 {[%clk 0:01:36.3]} 31. Bxc6 {[%clk 0:00:34.4]} 31... Rxc6
{[%clk 0:01:37]} 32. c3 {[%clk 0:00:34.1]} 32... Ra6 {[%clk 0:01:33.6]} 33. Qe3
{[%clk 0:00:32.7]} 33... Rad6 {[%clk 0:01:34.4]} 34. Re1 {[%clk 0:00:30.7]}
34... Kb8 {[%clk 0:01:34.1]} 35. h4 {[%clk 0:00:30.3]} 35... Rd2 {[%clk
0:01:34.3]} 36. Re2 {[%clk 0:00:29.8]} 36... Rd1+ {[%clk 0:01:34.4]} 37. Kg2
{[%clk 0:00:30.1]} 37... R1d3 {[%clk 0:01:35.3]} 38. Qe7 {[%clk 0:00:28.5]}
38... R3d6 {[%clk 0:01:36.1]} 39. h5 {[%clk 0:00:27.8]} 39... R8d7 {[%clk
0:01:36.3]} 40. Qf8+ {[%clk 0:00:27.4]} 40... Ka7 {[%clk 0:01:37.2]} 41. Re8
{[%clk 0:00:23.2]} 41... Rd2 {[%clk 0:01:36.7]} 42. Ra8+ {[%clk 0:00:20.4]}
42... Kb6 {[%clk 0:01:37.1]} 43. Qb4+ {[%clk 0:00:20.7]} 43... Kc6 {[%clk
0:01:37.7]} 44. Qc4+ {[%clk 0:00:21]} 44... Kb6 {[%clk 0:01:37.9]} 45. Ra4
{[%clk 0:00:20.7]} 45... c5 {[%clk 0:01:37.8]} 46. Qb3+ {[%clk 0:00:19.8]} 46...
Kc6 {[%clk 0:01:37.9]} 47. Rf4 {[%clk 0:00:20.3]} 47... R7d6 {[%clk 0:01:36.3]}
48. Qg8 {[%clk 0:00:18.6]} 48... Rxb2 {[%clk 0:01:36.1]} 49. Qe8+ {[%clk
0:00:18.6]} 49... Kb6 {[%clk 0:01:36.4]} 50. Qf8 {[%clk 0:00:18.2]} 50... Rbd2
{[%clk 0:01:34.5]} 51. h6 {[%clk 0:00:18.4]} 51... Rd8 {[%clk 0:01:35]} 52. Qf6+
{[%clk 0:00:18.2]} 52... Kb5 {[%clk 0:01:35.8]} 53. h7 {[%clk 0:00:18.5]} 53...
R2d6 {[%clk 0:01:36.7]} 54. Qg7 {[%clk 0:00:18.1]} 54... R6d7 {[%clk 0:01:36.9]}
55. Rf7 {[%clk 0:00:18.5]} 1-0

[Event "Late-Titled-Tuesday-Blitz-February-20-2024"]
[Site "Chess.com"]
[Date "2024.02.20"]
[Round "5"]
[White "rionelG"]
[Black "jactorres"]
[Result "1-0"]
[WhiteElo "2216"]
[BlackElo "2419"]
[TimeControl "180+1"]
[EndTime "14:54:58 PST"]
[Termination "rionelG won on time"]

1. e4 {[%clk 0:03:00.9]} 1... e5 {[%clk 0:02:33.7]} 2. Nf3 {[%clk 0:02:59.3]}
2... Nc6 {[%clk 0:02:33.7]} 3. Bb5 {[%clk 0:02:53.2]} 3... a6 {[%clk 0:02:34.1]}
4. Ba4 {[%clk 0:02:52.4]} 4... Nf6 {[%clk 0:02:34.7]} 5. O-O {[%clk 0:02:52.2]}
5... b5 {[%clk 0:02:35.4]} 6. Bb3 {[%clk 0:02:52.1]} 6... Bc5 {[%clk 0:02:36.1]}
7. c3 {[%clk 0:02:48]} 7... d6 {[%clk 0:02:36.4]} 8. d4 {[%clk 0:02:46.8]} 8...
Bb6 {[%clk 0:02:00.9]} 9. h3 {[%clk 0:02:43.3]} 9... O-O {[%clk 0:01:54]} 10.
Re1 {[%clk 0:02:33.4]} 10... h6 {[%clk 0:01:54.1]} 11. a4 {[%clk 0:02:32.4]}
11... b4 {[%clk 0:01:33.6]} 12. Be3 {[%clk 0:02:05]} 12... bxc3 {[%clk
0:01:27.3]} 13. bxc3 {[%clk 0:01:55.5]} 13... Rb8 {[%clk 0:01:16.1]} 14. Na3
{[%clk 0:01:30.6]} 14... Re8 {[%clk 0:01:06.2]} 15. Nc4 {[%clk 0:00:51.8]} 15...
Ba7 {[%clk 0:00:23.6]} 16. dxe5 {[%clk 0:00:42.9]} 16... dxe5 {[%clk 0:00:10.7]}
17. Bxa7 {[%clk 0:00:40.7]} 17... Nxa7 {[%clk 0:00:02.1]} 18. Ncxe5 {[%clk
0:00:35.5]} 18... Qxd1 {[%clk 0:00:01.9]} 19. Bxf7+ {[%clk 0:00:19.8]} 19... Kf8
{[%clk 0:00:01]} 20. Raxd1 {[%clk 0:00:20.4]} 1-0

[Event "Late-Titled-Tuesday-Blitz-February-20-2024"]
[Site "Chess.com"]
[Date "2024.02.20"]
[Round "5"]
[White "Phamtrangiaphuc2009"]
[Black "Bugcrusher"]
[Result "1-0"]
[WhiteElo "2361"]
[BlackElo "2513"]
[TimeControl "180+1"]
[EndTime "14:54:59 PST"]
[Termination "Phamtrangiaphuc2009 won by resignation"]

1. d3 {[%clk 0:02:48]} 1... d5 {[%clk 0:02:56.3]} 2. g3 {[%clk 0:02:47]} 2... h5
{[%clk 0:02:54]} 3. Bg2 {[%clk 0:02:47.9]} 3... h4 {[%clk 0:02:53.8]} 4. c4
{[%clk 0:02:44.2]} 4... h3 {[%clk 0:02:51.6]} 5. Bxd5 {[%clk 0:02:43.4]} 5...
Nf6 {[%clk 0:02:47.2]} 6. Bf3 {[%clk 0:02:42.4]} 6... e5 {[%clk 0:02:46.2]} 7.
Nc3 {[%clk 0:02:42.2]} 7... Bc5 {[%clk 0:02:36.9]} 8. Bg5 {[%clk 0:02:38]} 8...
c6 {[%clk 0:02:35.2]} 9. Qd2 {[%clk 0:02:36.9]} 9... a5 {[%clk 0:02:29.3]} 10.
Ne4 {[%clk 0:02:35.9]} 10... Nxe4 {[%clk 0:02:23]} 11. Bxe4 {[%clk 0:02:32.9]}
11... f6 {[%clk 0:02:23.1]} 12. Be3 {[%clk 0:02:32.3]} 12... Bb4 {[%clk
0:02:23]} 13. Bg6+ {[%clk 0:02:23.9]} 13... Kd7 {[%clk 0:02:17]} 14. Nf3 {[%clk
0:02:20.5]} 14... Bxd2+ {[%clk 0:02:15.8]} 15. Bxd2 {[%clk 0:02:21]} 15... Kc7
{[%clk 0:02:11.8]} 16. O-O {[%clk 0:02:14.3]} 16... Bg4 {[%clk 0:02:10.7]} 17.
Bc3 {[%clk 0:02:10.7]} 17... Bxf3 {[%clk 0:02:10.6]} 18. exf3 {[%clk 0:02:10.3]}
18... Nd7 {[%clk 0:02:09.4]} 19. Rfe1 {[%clk 0:02:07.4]} 19... Nc5 {[%clk
0:02:08.4]} 20. f4 {[%clk 0:02:07.6]} 20... Nxd3 {[%clk 0:02:01.4]} 21. Red1
{[%clk 0:02:07.5]} 21... Nxf4 {[%clk 0:01:00.7]} 22. Rxd8 {[%clk 0:01:56]} 22...
Nxg6 {[%clk 0:01:00.7]} 23. Rxh8 {[%clk 0:01:53.7]} 23... Nxh8 {[%clk
0:01:00.9]} 24. Re1 {[%clk 0:01:48.4]} 24... Nf7 {[%clk 0:01:00.7]} 25. f4
{[%clk 0:01:47.4]} 25... Kd6 {[%clk 0:00:57.5]} 26. Rd1+ {[%clk 0:01:46.7]}
26... Ke6 {[%clk 0:00:57.2]} 27. Kf2 {[%clk 0:01:46.4]} 27... a4 {[%clk
0:00:56.4]} 28. Kf3 {[%clk 0:01:44.1]} 28... Rd8 {[%clk 0:00:54.7]} 29. Re1
{[%clk 0:01:38.2]} 29... Rd3+ {[%clk 0:00:49.5]} 30. Kg4 {[%clk 0:01:37.5]}
30... a3 {[%clk 0:00:46.5]} 31. Re2 {[%clk 0:01:34.3]} 31... axb2 {[%clk
0:00:43.5]} 32. Bxb2 {[%clk 0:01:33.9]} 32... f5+ {[%clk 0:00:31.8]} 33. Kxh3
{[%clk 0:01:33]} 33... e4 {[%clk 0:00:32.2]} 34. Bxg7 {[%clk 0:01:32.4]} 34...
Nd6 {[%clk 0:00:32.2]} 35. c5 {[%clk 0:01:26.6]} 35... Nc4 {[%clk 0:00:32.3]}
36. Kh4 {[%clk 0:01:23.5]} 36... Kd5 {[%clk 0:00:30.5]} 37. g4 {[%clk
0:01:21.6]} 37... fxg4 {[%clk 0:00:26.9]} 38. Kxg4 {[%clk 0:01:15.8]} 38... Ne3+
{[%clk 0:00:24.9]} 39. Kg5 {[%clk 0:01:15.8]} 39... Kxc5 {[%clk 0:00:18.8]} 40.
f5 {[%clk 0:01:14.5]} 40... Nd5 {[%clk 0:00:17.4]} 41. Rxe4 {[%clk 0:01:13.3]}
41... Rd2 {[%clk 0:00:17.2]} 42. h4 {[%clk 0:01:11.9]} 42... Rg2+ {[%clk
0:00:17]} 43. Rg4 {[%clk 0:01:11.5]} 43... Rh2 {[%clk 0:00:15.2]} 44. f6 {[%clk
0:01:08.5]} 44... Kd6 {[%clk 0:00:14]} 45. f7 {[%clk 0:01:07.6]} 1-0

[Event "Late-Titled-Tuesday-Blitz-February-20-2024"]
[Site "Chess.com"]
[Date "2024.02.20"]
[Round "5"]
[White "kylelancman"]
[Black "vovachesss"]
[Result "0-1"]
[WhiteElo "2479"]
[BlackElo "2786"]
[TimeControl "180+1"]
[EndTime "14:55:00 PST"]
[Termination "vovachesss won on time"]

1. e4 {[%clk 0:03:00.9]} 1... e5 {[%clk 0:02:55.9]} 2. Nf3 {[%clk 0:03:00.8]}
2... d5 {[%clk 0:02:56.6]} 3. d4 {[%clk 0:02:58.3]} 3... dxe4 {[%clk 0:02:56.5]}
4. Nxe5 {[%clk 0:02:58]} 4... Bd6 {[%clk 0:02:57.2]} 5. Bc4 {[%clk 0:02:57.5]}
5... Bxe5 {[%clk 0:02:57.7]} 6. Qh5 {[%clk 0:02:57.6]} 6... Qe7 {[%clk
0:02:58.3]} 7. Qxe5 {[%clk 0:02:58]} 7... Qxe5 {[%clk 0:02:58.1]} 8. dxe5 {[%clk
0:02:58.9]} 8... Nc6 {[%clk 0:02:59]} 9. Nc3 {[%clk 0:02:59]} 9... Bf5 {[%clk
0:02:57.4]} 10. Bf4 {[%clk 0:02:55.8]} 10... Nge7 {[%clk 0:02:56.6]} 11. Nd5
{[%clk 0:02:26.7]} 11... Nxd5 {[%clk 0:02:39.3]} 12. Bxd5 {[%clk 0:02:27.1]}
12... Nb4 {[%clk 0:02:40.2]} 13. Bb3 {[%clk 0:02:27.2]} 13... O-O-O {[%clk
0:02:40.2]} 14. Bd2 {[%clk 0:02:11.4]} 14... Nd5 {[%clk 0:02:27.7]} 15. O-O-O
{[%clk 0:02:08.8]} 15... c6 {[%clk 0:02:25.4]} 16. c4 {[%clk 0:01:59.6]} 16...
Nc7 {[%clk 0:02:18.7]} 17. Be3 {[%clk 0:01:51.3]} 17... a6 {[%clk 0:01:59]} 18.
Bb6 {[%clk 0:01:33.4]} 18... Rxd1+ {[%clk 0:01:54.5]} 19. Rxd1 {[%clk
0:01:34.3]} 19... Re8 {[%clk 0:01:54.8]} 20. Bd4 {[%clk 0:01:17.4]} 20... Ne6
{[%clk 0:01:42.7]} 21. Be3 {[%clk 0:01:17.5]} 21... Nc7 {[%clk 0:01:41.9]} 22.
Bd4 {[%clk 0:01:16.8]} 22... g5 {[%clk 0:01:34.4]} 23. h3 {[%clk 0:01:11.5]}
23... h6 {[%clk 0:01:34.2]} 24. Re1 {[%clk 0:01:06]} 24... Ne6 {[%clk
0:01:33.1]} 25. Be3 {[%clk 0:01:05.2]} 25... Nf4 {[%clk 0:01:31.9]} 26. Bxf4
{[%clk 0:00:19.8]} 26... gxf4 {[%clk 0:01:32.8]} 27. Bc2 {[%clk 0:00:03]} 27...
Rxe5 {[%clk 0:01:32.4]} 28. f3 {[%clk 0:00:03.3]} 28... e3 {[%clk 0:01:32]} 29.
Bxf5+ {[%clk 0:00:02.4]} 29... Rxf5 {[%clk 0:01:32.9]} 30. Kc2 {[%clk
0:00:02.4]} 30... Rg5 {[%clk 0:01:32.7]} 31. Re2 {[%clk 0:00:03.3]} 31... Rg8
{[%clk 0:01:00.6]} 32. Kd3 {[%clk 0:00:03.8]} 32... Rd8+ {[%clk 0:01:01]} 33.
Kc3 {[%clk 0:00:03]} 33... Kd7 {[%clk 0:00:52.8]} 34. g3 {[%clk 0:00:02.7]}
34... fxg3 {[%clk 0:00:53.1]} 35. Rxe3 {[%clk 0:00:03.4]} 35... Re8 {[%clk
0:00:49.2]} 0-1